{"text_format":"3","workbook":"xlsx","n_sheets":1,"sheets":["Лист1"],"not_rendered":{"defined_names":1},"read":"whole","date_system":"1900"}

{"sheet":"Лист1","index":0,"n_rows":32,"n_cols":15,"rows_kept":32,"merged":[[0,9,0,13],[1,7,1,13],[2,7,2,13],[4,7,4,13],[6,0,6,13],[8,0,10,0],[8,1,10,1],[8,2,10,2],[8,3,8,13],[9,3,10,3],[9,4,10,4],[9,5,10,5],[9,6,10,6],[9,7,10,7],[9,8,10,8],[9,9,10,9],[9,10,10,10],[9,11,10,11],[9,12,9,13],[12,0,12,13],[14,15,14,24],[17,0,17,13],[20,15,20,22],[22,15,22,22],[23,15,23,22],[24,15,24,22],[25,0,25,13],[27,0,27,13],[31,0,31,1],[31,6,31,8]]}
[{"$nulls":9},"Приложение 1"]
[{"$nulls":7},"к постановлению администрации города Усолье-Сибирское"]
[{"$nulls":7},"от 25.11.2025 г. №2163-па"]
[]
[{"$nulls":7},"«Приложение 1\nк муниципальной программе \nгорода Усолье-Сибирское «Обеспечение населения\n доступным жильем» на 2019-2027 годы"]
[]
["Сведения о составе и значениях целевых показателей муниципальной программы города Усолье-Сибирское \n«Обеспечение населения доступным жильём» на 2019-2027 годы"]
[]
["№ пп","Наименование целевого показателя ","Ед. изм.","Значения целевых показателей"]
[{"$nulls":3},"2017 год","2018 год","2019 год","2020 год","2021 год","2022 год","2023 год","2024 год","2025 год","плановый период"]
[{"$nulls":12},"2026 год (прогноз)","2027 год (прогноз)"]
[1,2,3,4,5,6,7,8,9,10,11,12,13,14]
["Муниципальная программа города Усолье-Сибирское «Обеспечение населения доступным жильем» на 2019-2027 годы"]
[1,"Количество граждан, переселенных из многоквартирных домов, признанных в установленном порядке аварийными и подлежащими сносу  ","человек",{"$f":"D19","v":0},{"$f":"E19","v":0},0,0,0,52,66,419,265,504,1223]
[2,"Площадь снесенного аварийного жилищного фонда, признанного после 01 января 2012 года в установленном порядке аварийным и подлежащим сносу в связи с физическим износом в процессе эксплуатации","кв. м.",{"$f":"D20","v":0},{"$f":"E20","v":0},0,0,0,0,{"v":0,"d":"0.00"},412.92,{"v":2241.08,"d":"2,241.08"},{"v":12391.51,"d":"12,391.51"},{"v":16442.1,"d":"16,442.10"}]
[3,"Количество молодых семей, улучшивших жилищные условия","единиц",2,2,7,22,"-","-","-","-","-","-","-"]
[4,"Количество построенных сейсмостойких жилых домов","единиц",{"$f":"D29","v":0},{"$f":"E29","v":0},0,0,0,0,0,0,0,0,0]
["Подпрограмма 1 «Переселение граждан из аварийного жилищного фонда в городе Усолье-Сибирское» на 2019-2027 годы"]
[1,"Количество граждан, переселенных из многоквартирных домов, признанных в установленном порядке аварийными и подлежащими сносу  ","человек",0,0,0,0,0,52,66,419,265,504,{"v":1223,"d":"1,223"}]
[2,"Площадь снесенного аварийного жилищного фонда, признанного после 01 января 2012 года в установленном порядке аварийным и подлежащим сносу в связи с физическим износом в процессе эксплуатации","кв. м.",0,0,0,0,0,0,{"v":0,"d":"0.00"},412.92,{"v":2241.08,"d":"2,241.08"},{"v":12391.51,"d":"12,391.51"},{"v":16442.1,"d":"16,442.10"}]
[3,"Количество выданных заключений специализированной организации, проводившей обследования жилых домов","шт.",0,5,1,0,2,1,2,4,2,0,0]
[4,"Количество изготовленных информационных таблиц на многоквартирные дома","шт.","-",null,0,0,5,0,0,0,0,0,0]
[5,"Количество разработанной проектной документации","ед.","-","-",0,0,0,1,0,0,1,0,0]
[6,"Количество жилых помещений, признанных аварийными до 01.01.2017 года, по которым проведена оценка рыночной стоимости","ед.","-","-",0,0,6,1,20,31,3,0,0]
[7,"Количество разработанной проектно-сметной документации на снос/демонтаж аварийных объектов капитального строительства","ед.","-","-","-","-","-","-","-",35,0,0,0]
["Подпрограмма 2 «Обеспечение жильем молодых семей» на 2019-2020 годы"]
[1,"Количество молодых семей, улучшивших жилищные условия","единиц",2,2,7,22,"-","-","-","-","-","-","-"]
["Подпрограмма 3 «Повышение устойчивости жилых домов, основных объектов и систем жизнеобеспечения» на 2022 – 2027 годы"]
["1.","Количество построенных сейсмостойких жилых домов","единиц",0,0,0,0,0,0,0,0,0,0,0,"»."]
[]
[]
["Мэр города",{"$nulls":5},"М.В. Торопкин"]